[Event "Titled Tuesday Blitz June 27 Early 2023"]
[White "Lopez Gracia, Fernando"]
[Black "Ishowmoves57"]
[WhiteFideId "2207184"]
[WhiteElo "2460"]
[BlackElo "2096"]
[Result "1-0"]
[Round "6"]
[TimeControl "180+2"]
[Date "2023.06.27"]
[WhiteClock "0:01:19"]
[BlackClock "0:00:47"]
[Board "162"]

1. e4 {[%clk 0:03:00]}  c5 {[%clk 0:02:57]} 2. Nf3 {[%clk 0:02:59]}  Nc6 {[%clk 0:02:58]} 3. b3 {[%clk 0:02:59]}  g6 {[%clk 0:02:53]} 4. Bb2 {[%clk 0:02:59]}  Nf6 {[%clk 0:02:54]} 5. e5 {[%clk 0:02:49]}  Nd5 {[%clk 0:02:53]} 6. Bc4 {[%clk 0:02:39]}  Nb6 {[%clk 0:02:46]} 7. Bxf7+ {[%clk 0:02:36]}  Kxf7 {[%clk 0:02:44]} 8. Ng5+ {[%clk 0:02:32]}  Kg8 {[%clk 0:02:36]} 9. Qf3 {[%clk 0:02:24]}  Qe8 {[%clk 0:02:32]} 10. e6 {[%clk 0:02:20]}  dxe6 {[%clk 0:01:46]} 11. Bxh8 {[%clk 0:02:15]}  Kxh8 {[%clk 0:01:47]} 12. h4 {[%clk 0:01:59]}  Nd4 {[%clk 0:01:40]} 13. Qe4 {[%clk 0:01:57]}  Qc6 {[%clk 0:01:34]} 14. Qf4 {[%clk 0:01:39]}  Bg7 {[%clk 0:01:22]} 15. h5 {[%clk 0:01:33]}  Nxc2+ {[%clk 0:01:02]} 16. Kd1 {[%clk 0:01:32]}  Nxa1 {[%clk 0:00:49]} 17. hxg6 {[%clk 0:01:31]}  h6 {[%clk 0:00:50]} 18. Nf7+ {[%clk 0:01:18]}  Kg8 {[%clk 0:00:49]} 19. Nxh6+ {[%clk 0:01:19]}  Bxh6 {[%clk 0:00:46]} 20. Qf7+ {[%clk 0:01:20]}  Kh8 {[%clk 0:00:47]} 21. Rxh6# {[%clk 0:01:19]} 1-0


[Site "https://www.chess.com"]

[Event "Titled Tuesday Blitz June 27 Early 2023"]
[White "Yelisieiev, Yevhenii"]
[Black "Fajdetic, Hrvoje"]
[WhiteFideId "14139642"]
[BlackFideId "14501945"]
[WhiteElo "2511"]
[BlackElo "2351"]
[Result "1-0"]
[Round "6"]
[TimeControl "180+2"]
[Date "2023.06.27"]
[WhiteClock "0:00:02"]
[BlackClock "0:00:00"]
[Board "165"]

1. d4 {[%clk 0:03:00]}  e6 {[%clk 0:02:56]} 2. Nf3 {[%clk 0:03:00]}  d5 {[%clk 0:02:53]} 3. c4 {[%clk 0:02:58]}  f5 {[%clk 0:02:52]} 4. Nc3 {[%clk 0:02:57]}  c6 {[%clk 0:02:52]} 5. g3 {[%clk 0:02:57]}  Nf6 {[%clk 0:02:52]} 6. Bg2 {[%clk 0:02:58]}  Bd6 {[%clk 0:02:52]} 7. O-O {[%clk 0:02:59]}  O-O {[%clk 0:02:52]} 8. Bf4 {[%clk 0:02:59]}  Ne4 {[%clk 0:02:50]} 9. Rb1 {[%clk 0:02:57]}  a5 {[%clk 0:02:46]} 10. Qc2 {[%clk 0:02:56]}  b6 {[%clk 0:02:39]} 11. a3 {[%clk 0:02:55]}  Ba6 {[%clk 0:02:36]} 12. cxd5 {[%clk 0:02:39]}  cxd5 {[%clk 0:02:27]} 13. Bxd6 {[%clk 0:02:30]}  Qxd6 {[%clk 0:02:25]} 14. Ne5 {[%clk 0:02:30]}  Nd7 {[%clk 0:02:18]} 15. Nd3 {[%clk 0:02:26]}  Bxd3 {[%clk 0:02:14]} 16. Qxd3 {[%clk 0:02:23]}  Rfc8 {[%clk 0:01:57]} 17. Nb5 {[%clk 0:02:23]}  Qc6 {[%clk 0:01:53]} 18. a4 {[%clk 0:02:04]}  Nd6 {[%clk 0:01:49]} 19. Na3 {[%clk 0:01:58]}  Qxa4 {[%clk 0:01:45]} 20. Rfc1 {[%clk 0:01:44]}  b5 {[%clk 0:01:30]} 21. Qe3 {[%clk 0:01:22]}  Kf7 {[%clk 0:01:21]} 22. Ra1 {[%clk 0:01:16]}  Rxc1+ {[%clk 0:01:14]} 23. Rxc1 {[%clk 0:01:15]}  Nc4 {[%clk 0:01:13]} 24. Qf4 {[%clk 0:00:39]}  Ra7 {[%clk 0:00:50]} 25. Nxc4 {[%clk 0:00:22]}  bxc4 {[%clk 0:00:51]} 26. g4 {[%clk 0:00:23]}  g6 {[%clk 0:00:45]} 27. gxf5 {[%clk 0:00:22]}  gxf5 {[%clk 0:00:45]} 28. e4 {[%clk 0:00:20]}  dxe4 {[%clk 0:00:39]} 29. d5 {[%clk 0:00:21]}  Nf6 {[%clk 0:00:30]} 30. dxe6+ {[%clk 0:00:17]}  Kxe6 {[%clk 0:00:31]} 31. Bh3 {[%clk 0:00:11]}  Qb5 {[%clk 0:00:22]} 32. Rd1 {[%clk 0:00:09]}  Qe5 {[%clk 0:00:19]} 33. Qh6 {[%clk 0:00:08]}  Rd7 {[%clk 0:00:17]} 34. Rxd7 {[%clk 0:00:06]}  Kxd7 {[%clk 0:00:17]} 35. Qg7+ {[%clk 0:00:06]}  Ke6 {[%clk 0:00:16]} 36. Qf8 {[%clk 0:00:05]}  Qc7 {[%clk 0:00:06]} 37. Qa3 {[%clk 0:00:01]}  Ke5 {[%clk 0:00:04]} 38. Qg3+ {[%clk 0:00:01]}  f4 {[%clk 0:00:04]} 39. Qg5+ {[%clk 0:00:02]}  Kd4 {[%clk 0:00:04]} 40. Qxf6+ {[%clk 0:00:02]}  Qe5 {[%clk 0:00:04]} 41. Qb6+ {[%clk 0:00:03]}  Kd3 {[%clk 0:00:04]} 42. Bf1+ {[%clk 0:00:01]}  Kd2 {[%clk 0:00:04]} 43. Bxc4 {[%clk 0:00:01]}  e3 {[%clk 0:00:04]} 44. fxe3 {[%clk 0:00:02]}  Qxe3+ {[%clk 0:00:04]} 45. Qxe3+ {[%clk 0:00:02]}  fxe3 {[%clk 0:00:02]} 46. Kf1 {[%clk 0:00:02]}  Kc2 {[%clk 0:00:02]} 47. b3 {[%clk 0:00:02]}  Kc3 {[%clk 0:00:02]} 48. Bd5 {[%clk 0:00:02]}  Kd4 {[%clk 0:00:01]} 49. Bg8 {[%clk 0:00:01]}  h6 {[%clk 0:00:01]} 50. Ke2 {[%clk 0:00:02]}  Ke4 {[%clk 0:00:02]} 51. Bc4 {[%clk 0:00:02]}  Kd4 {[%clk 0:00:00]} 52. Bd3 {[%clk 0:00:02]} 1-0


[Site "https://www.chess.com"]

[Event "Titled Tuesday Blitz June 27 Early 2023"]
[White "Rosenberg, Evan S"]
[Black "Tikhonov, Viacheslav"]
[WhiteFideId "2019299"]
[BlackFideId "44196407"]
[WhiteElo "2336"]
[BlackElo "2504"]
[Result "1-0"]
[Round "6"]
[TimeControl "180+2"]
[Date "2023.06.27"]
[WhiteClock "0:00:19"]
[BlackClock "0:01:44"]
[Board "166"]

1. d4 {[%clk 0:03:00]}  Nf6 {[%clk 0:02:59]} 2. Nf3 {[%clk 0:03:01]}  d5 {[%clk 0:02:58]} 3. Bg5 {[%clk 0:03:00]}  Ne4 {[%clk 0:02:53]} 4. Bh4 {[%clk 0:03:00]}  c5 {[%clk 0:02:53]} 5. e3 {[%clk 0:03:00]}  Qb6 {[%clk 0:02:52]} 6. Nc3 {[%clk 0:03:00]}  Nxc3 {[%clk 0:02:50]} 7. bxc3 {[%clk 0:03:00]}  Bg4 {[%clk 0:02:48]} 8. Be2 {[%clk 0:03:00]}  e6 {[%clk 0:02:46]} 9. O-O {[%clk 0:02:59]}  Nc6 {[%clk 0:02:44]} 10. Rb1 {[%clk 0:02:59]}  Qc7 {[%clk 0:02:35]} 11. Bg3 {[%clk 0:02:59]}  Qc8 {[%clk 0:02:36]} 12. h3 {[%clk 0:02:53]}  Bh5 {[%clk 0:02:33]} 13. Ne5 {[%clk 0:02:52]}  Bxe2 {[%clk 0:02:32]} 14. Qxe2 {[%clk 0:02:52]}  c4 {[%clk 0:02:27]} 15. e4 {[%clk 0:02:49]}  dxe4 {[%clk 0:02:21]} 16. Qxe4 {[%clk 0:02:49]}  Na5 {[%clk 0:02:19]} 17. d5 {[%clk 0:02:41]}  Be7 {[%clk 0:02:11]} 18. d6 {[%clk 0:02:33]}  Bxd6 {[%clk 0:02:08]} 19. Nxf7 {[%clk 0:02:34]}  Kxf7 {[%clk 0:02:06]} 20. Bxd6 {[%clk 0:02:33]}  Re8 {[%clk 0:02:06]} 21. Qxh7 {[%clk 0:02:30]}  e5 {[%clk 0:02:04]} 22. Qh5+ {[%clk 0:02:09]}  Kg8 {[%clk 0:02:01]} 23. Bxe5 {[%clk 0:02:06]}  Nc6 {[%clk 0:02:01]} 24. Bd4 {[%clk 0:02:04]}  Qd7 {[%clk 0:02:00]} 25. Rfd1 {[%clk 0:02:02]}  Qe7 {[%clk 0:01:57]} 26. Qd5+ {[%clk 0:02:00]}  Qe6 {[%clk 0:01:51]} 27. Qxe6+ {[%clk 0:01:58]}  Rxe6 {[%clk 0:01:52]} 28. Rxb7 {[%clk 0:01:58]}  Re7 {[%clk 0:01:53]} 29. Rxe7 {[%clk 0:01:55]}  Nxe7 {[%clk 0:01:54]} 30. Rb1 {[%clk 0:01:52]}  Nc6 {[%clk 0:01:53]} 31. Rb7 {[%clk 0:01:49]}  Re8 {[%clk 0:01:51]} 32. Rxg7+ {[%clk 0:01:48]}  Kf8 {[%clk 0:01:52]} 33. Rc7 {[%clk 0:01:46]}  Nd8 {[%clk 0:01:48]} 34. Rxa7 {[%clk 0:01:42]}  Re1+ {[%clk 0:01:47]} 35. Kh2 {[%clk 0:01:42]}  Re2 {[%clk 0:01:48]} 36. a4 {[%clk 0:01:28]}  Rxc2 {[%clk 0:01:48]} 37. a5 {[%clk 0:01:28]}  Ra2 {[%clk 0:01:49]} 38. a6 {[%clk 0:01:20]}  Nc6 {[%clk 0:01:48]} 39. Ra8+ {[%clk 0:01:11]}  Kf7 {[%clk 0:01:46]} 40. Be3 {[%clk 0:01:09]}  Kg7 {[%clk 0:01:42]} 41. a7 {[%clk 0:01:08]}  Ra3 {[%clk 0:01:39]} 42. Rc8 {[%clk 0:01:08]}  Nxa7 {[%clk 0:01:39]} 43. Rc7+ {[%clk 0:01:07]}  Kg6 {[%clk 0:01:39]} 44. Rxa7 {[%clk 0:01:03]}  Rxc3 {[%clk 0:01:40]} 45. Ra5 {[%clk 0:01:02]}  Rc2 {[%clk 0:01:40]} 46. Rc5 {[%clk 0:01:01]}  Kf6 {[%clk 0:01:41]} 47. Kg3 {[%clk 0:00:59]}  Ke6 {[%clk 0:01:41]} 48. Kf3 {[%clk 0:00:59]}  Kd6 {[%clk 0:01:42]} 49. Ke4 {[%clk 0:00:59]}  Re2 {[%clk 0:01:41]} 50. Rxc4 {[%clk 0:00:57]}  Re1 {[%clk 0:01:42]} 51. Kf5 {[%clk 0:00:51]}  Rg1 {[%clk 0:01:41]} 52. g4 {[%clk 0:00:50]}  Ke7 {[%clk 0:01:42]} 53. Rc6 {[%clk 0:00:44]}  Rh1 {[%clk 0:01:41]} 54. Rh6 {[%clk 0:00:41]}  Kf7 {[%clk 0:01:42]} 55. h4 {[%clk 0:00:36]}  Kg7 {[%clk 0:01:43]} 56. h5 {[%clk 0:00:34]}  Ra1 {[%clk 0:01:42]} 57. Bd4+ {[%clk 0:00:24]}  Kxh6 {[%clk 0:01:40]} 58. Bxa1 {[%clk 0:00:25]}  Kh7 {[%clk 0:01:41]} 59. g5 {[%clk 0:00:25]}  Kg8 {[%clk 0:01:41]} 60. g6 {[%clk 0:00:23]}  Kf8 {[%clk 0:01:40]} 61. h6 {[%clk 0:00:23]}  Kg8 {[%clk 0:01:41]} 62. h7+ {[%clk 0:00:22]}  Kf8 {[%clk 0:01:42]} 63. h8=Q+ {[%clk 0:00:21]}  Ke7 {[%clk 0:01:42]} 64. Qf6+ {[%clk 0:00:20]}  Kd7 {[%clk 0:01:43]} 65. g7 {[%clk 0:00:20]}  Kc7 {[%clk 0:01:44]} 66. g8=Q {[%clk 0:00:19]}  Kd7 {[%clk 0:01:44]} 67. Qgg7+ {[%clk 0:00:19]} 1-0


[Site "https://www.chess.com"]

[Event "Titled Tuesday Blitz June 27 Early 2023"]
[White "Begunov, Konstantin"]
[Black "Mikhaylova, Irina"]
[WhiteFideId "4118510"]
[BlackFideId "4109040"]
[WhiteElo "2443"]
[BlackElo "2299"]
[Result "0-1"]
[Round "6"]
[TimeControl "180+2"]
[Date "2023.06.27"]
[WhiteClock "0:00:00"]
[BlackClock "0:00:20"]
[Board "168"]

1. d4 {[%clk 0:02:57]}  Nf6 {[%clk 0:02:59]} 2. c4 {[%clk 0:02:56]}  g6 {[%clk 0:02:59]} 3. f3 {[%clk 0:02:56]}  c5 {[%clk 0:02:57]} 4. dxc5 {[%clk 0:02:55]}  Na6 {[%clk 0:02:42]} 5. e4 {[%clk 0:02:52]}  Nxc5 {[%clk 0:02:34]} 6. Be3 {[%clk 0:02:48]}  d6 {[%clk 0:02:27]} 7. e5 {[%clk 0:02:24]}  Nfd7 {[%clk 0:02:25]} 8. exd6 {[%clk 0:02:24]}  exd6 {[%clk 0:02:23]} 9. Bd4 {[%clk 0:02:17]}  Qe7+ {[%clk 0:01:59]} 10. Be2 {[%clk 0:01:51]}  f6 {[%clk 0:01:59]} 11. Nc3 {[%clk 0:01:47]}  Nb6 {[%clk 0:01:47]} 12. b4 {[%clk 0:00:53]}  Ne6 {[%clk 0:01:32]} 13. Bxb6 {[%clk 0:00:28]}  axb6 {[%clk 0:01:32]} 14. Nd5 {[%clk 0:00:29]}  Qd8 {[%clk 0:01:31]} 15. Qd2 {[%clk 0:00:22]}  Bg7 {[%clk 0:01:27]} 16. Qe3 {[%clk 0:00:19]}  O-O {[%clk 0:01:03]} 17. Nxb6 {[%clk 0:00:19]}  Ra6 {[%clk 0:00:54]} 18. c5 {[%clk 0:00:16]}  Rxb6 {[%clk 0:00:38]} 19. cxb6 {[%clk 0:00:15]}  d5 {[%clk 0:00:33]} 20. Nh3 {[%clk 0:00:14]}  d4 {[%clk 0:00:30]} 21. Qb3 {[%clk 0:00:12]}  Qxb6 {[%clk 0:00:30]} 22. Bc4 {[%clk 0:00:08]}  Kh8 {[%clk 0:00:29]} 23. O-O {[%clk 0:00:07]}  f5 {[%clk 0:00:27]} 24. Rfe1 {[%clk 0:00:06]}  Nc7 {[%clk 0:00:24]} 25. Nf4 {[%clk 0:00:06]}  Bd7 {[%clk 0:00:23]} 26. Rad1 {[%clk 0:00:06]}  Bc6 {[%clk 0:00:22]} 27. a3 {[%clk 0:00:04]}  Bb5 {[%clk 0:00:20]} 28. Nd5 {[%clk 0:00:02]}  Nxd5 {[%clk 0:00:20]} 29. Bxd5 {[%clk 0:00:02]}  Bc6 {[%clk 0:00:20]} 30. Bxc6 {[%clk 0:00:02]}  bxc6 {[%clk 0:00:20]} 31. Qc4 {[%clk 0:00:02]}  Rd8 {[%clk 0:00:20]} 32. Rd3 {[%clk 0:00:00]}  Qa7 {[%clk 0:00:20]} 0-1


[Site "https://www.chess.com"]

[Event "Titled Tuesday Blitz June 27 Early 2023"]
[White "Andreev, Konstantin"]
[Black "Georg, Heinz"]
[WhiteFideId "24239305"]
[BlackFideId "4607295"]
[WhiteElo "2433"]
[BlackElo "2287"]
[Result "1-0"]
[Round "6"]
[TimeControl "180+2"]
[Date "2023.06.27"]
[WhiteClock "0:00:23"]
[BlackClock "0:00:00"]
[Board "169"]

1. e4 {[%clk 0:02:56]}  e5 {[%clk 0:02:59]} 2. Nf3 {[%clk 0:02:56]}  Nc6 {[%clk 0:02:58]} 3. Bc4 {[%clk 0:02:57]}  Nf6 {[%clk 0:02:58]} 4. d3 {[%clk 0:02:57]}  d5 {[%clk 0:02:58]} 5. exd5 {[%clk 0:02:58]}  Nxd5 {[%clk 0:02:58]} 6. O-O {[%clk 0:02:58]}  Nb6 {[%clk 0:02:58]} 7. Bb3 {[%clk 0:02:58]}  Bd6 {[%clk 0:02:57]} 8. Re1 {[%clk 0:02:57]}  h6 {[%clk 0:02:58]} 9. a4 {[%clk 0:02:57]}  a5 {[%clk 0:02:57]} 10. d4 {[%clk 0:02:55]}  Bg4 {[%clk 0:02:53]} 11. h3 {[%clk 0:02:49]}  Bxf3 {[%clk 0:02:50]} 12. Qxf3 {[%clk 0:02:50]}  O-O {[%clk 0:02:50]} 13. dxe5 {[%clk 0:02:11]}  Bxe5 {[%clk 0:02:46]} 14. c3 {[%clk 0:02:03]}  Qf6 {[%clk 0:02:43]} 15. Nd2 {[%clk 0:01:59]}  Rad8 {[%clk 0:02:37]} 16. Qg4 {[%clk 0:01:57]}  Nd5 {[%clk 0:01:42]} 17. Ne4 {[%clk 0:01:50]}  Qe7 {[%clk 0:01:18]} 18. f4 {[%clk 0:01:45]}  f5 {[%clk 0:01:17]} 19. Qd1 {[%clk 0:01:39]}  fxe4 {[%clk 0:01:16]} 20. Bxd5+ {[%clk 0:01:38]}  Kh8 {[%clk 0:01:13]} 21. fxe5 {[%clk 0:01:26]}  Qxe5 {[%clk 0:01:10]} 22. c4 {[%clk 0:01:24]}  Qg3 {[%clk 0:01:04]} 23. Be3 {[%clk 0:01:17]}  Ne5 {[%clk 0:01:00]} 24. Kh1 {[%clk 0:00:48]}  c6 {[%clk 0:00:54]} 25. Qe2 {[%clk 0:00:34]}  cxd5 {[%clk 0:00:53]} 26. cxd5 {[%clk 0:00:33]}  Rxd5 {[%clk 0:00:48]} 27. Rf1 {[%clk 0:00:33]}  Rxf1+ {[%clk 0:00:26]} 28. Rxf1 {[%clk 0:00:33]}  Nd3 {[%clk 0:00:26]} 29. Bb6 {[%clk 0:00:26]}  Rf5 {[%clk 0:00:00]} 30. Rxf5 {[%clk 0:00:23]} 1-0


[Site "https://www.chess.com"]

[Event "Titled Tuesday Blitz June 27 Early 2023"]
[White "LeoLV10"]
[Black "Rodriguez Santiago, Jaime"]
[BlackFideId "3100898"]
[WhiteElo "2414"]
[BlackElo "2275"]
[Result "1-0"]
[Round "6"]
[TimeControl "180+2"]
[Date "2023.06.27"]
[WhiteClock "0:00:15"]
[BlackClock "0:01:02"]
[Board "170"]

1. e4 {[%clk 0:03:00]}  c6 {[%clk 0:02:59]} 2. d4 {[%clk 0:03:00]}  d5 {[%clk 0:02:59]} 3. e5 {[%clk 0:03:01]}  Bf5 {[%clk 0:02:59]} 4. h4 {[%clk 0:03:00]}  h5 {[%clk 0:02:57]} 5. Bd3 {[%clk 0:03:00]}  Bxd3 {[%clk 0:02:55]} 6. Qxd3 {[%clk 0:03:01]}  Qa5+ {[%clk 0:02:55]} 7. Nd2 {[%clk 0:02:59]}  Qa6 {[%clk 0:02:55]} 8. c4 {[%clk 0:02:59]}  e6 {[%clk 0:02:54]} 9. Ngf3 {[%clk 0:02:55]}  Nh6 {[%clk 0:02:53]} 10. b3 {[%clk 0:02:55]}  c5 {[%clk 0:02:52]} 11. O-O {[%clk 0:02:48]}  Nf5 {[%clk 0:02:52]} 12. dxc5 {[%clk 0:02:46]}  Bxc5 {[%clk 0:02:47]} 13. Qc2 {[%clk 0:02:40]}  d4 {[%clk 0:02:41]} 14. Ne4 {[%clk 0:02:34]}  Be7 {[%clk 0:02:37]} 15. Bg5 {[%clk 0:02:29]}  Nc6 {[%clk 0:02:23]} 16. Bxe7 {[%clk 0:02:27]}  Ncxe7 {[%clk 0:02:19]} 17. Rad1 {[%clk 0:02:26]}  Rd8 {[%clk 0:02:17]} 18. b4 {[%clk 0:02:00]}  Qc6 {[%clk 0:02:05]} 19. b5 {[%clk 0:01:58]}  Qc7 {[%clk 0:02:01]} 20. a4 {[%clk 0:01:50]}  b6 {[%clk 0:01:54]} 21. Qd3 {[%clk 0:01:49]}  O-O {[%clk 0:01:47]} 22. Rc1 {[%clk 0:01:49]}  Ng6 {[%clk 0:01:44]} 23. c5 {[%clk 0:01:41]}  bxc5 {[%clk 0:01:35]} 24. Rxc5 {[%clk 0:01:42]}  Qb8 {[%clk 0:01:31]} 25. Rfc1 {[%clk 0:01:42]}  Rc8 {[%clk 0:01:21]} 26. Nxd4 {[%clk 0:01:01]}  Nxe5 {[%clk 0:01:16]} 27. Nxf5 {[%clk 0:00:15]}  Nxd3 {[%clk 0:01:02]} 28. Ne7+ {[%clk 0:00:14]}  Kh7 {[%clk 0:01:02]} 29. Rxh5# {[%clk 0:00:15]} 1-0


[Site "https://www.chess.com"]

[Event "Titled Tuesday Blitz June 27 Early 2023"]
[White "Quirke, Jeffrey"]
[Black "Tanmay Jain"]
[WhiteFideId "2013029"]
[BlackFideId "45015481"]
[WhiteElo "2227"]
[BlackElo "2414"]
[Result "1-0"]
[Round "6"]
[TimeControl "180+2"]
[Date "2023.06.27"]
[WhiteClock "0:00:08"]
[BlackClock "0:00:04"]
[Board "171"]

1. e4 {[%clk 0:03:00]}  c6 {[%clk 0:02:59]} 2. d4 {[%clk 0:03:00]}  d5 {[%clk 0:03:00]} 3. exd5 {[%clk 0:03:00]}  cxd5 {[%clk 0:03:00]} 4. c3 {[%clk 0:02:59]}  Nf6 {[%clk 0:03:00]} 5. Nf3 {[%clk 0:02:59]}  e6 {[%clk 0:03:00]} 6. Be3 {[%clk 0:02:58]}  Bd6 {[%clk 0:02:59]} 7. Bd3 {[%clk 0:02:53]}  Nc6 {[%clk 0:02:59]} 8. O-O {[%clk 0:02:52]}  O-O {[%clk 0:02:59]} 9. Nbd2 {[%clk 0:02:51]}  Qc7 {[%clk 0:02:57]} 10. h3 {[%clk 0:02:45]}  b6 {[%clk 0:02:55]} 11. Re1 {[%clk 0:02:40]}  h6 {[%clk 0:02:54]} 12. Nf1 {[%clk 0:02:26]}  Bb7 {[%clk 0:02:53]} 13. N1h2 {[%clk 0:02:25]}  e5 {[%clk 0:02:50]} 14. dxe5 {[%clk 0:02:24]}  Nxe5 {[%clk 0:02:51]} 15. Nxe5 {[%clk 0:02:24]}  Bxe5 {[%clk 0:02:52]} 16. Nf3 {[%clk 0:02:24]}  Bd6 {[%clk 0:02:47]} 17. Nd4 {[%clk 0:02:22]}  Bc5 {[%clk 0:02:23]} 18. Nf5 {[%clk 0:02:21]}  Bxe3 {[%clk 0:02:22]} 19. Rxe3 {[%clk 0:02:17]}  Bc8 {[%clk 0:02:23]} 20. Nd4 {[%clk 0:02:03]}  Bd7 {[%clk 0:02:22]} 21. Qc2 {[%clk 0:01:57]}  Rae8 {[%clk 0:02:19]} 22. Rae1 {[%clk 0:01:56]}  Rxe3 {[%clk 0:02:18]} 23. Rxe3 {[%clk 0:01:57]}  Re8 {[%clk 0:02:17]} 24. Qe2 {[%clk 0:01:57]}  Rxe3 {[%clk 0:01:56]} 25. Qxe3 {[%clk 0:01:58]}  Qd6 {[%clk 0:01:56]} 26. a3 {[%clk 0:01:42]}  Be6 {[%clk 0:01:56]} 27. Ne2 {[%clk 0:01:25]}  Nd7 {[%clk 0:01:52]} 28. Bc2 {[%clk 0:01:16]}  Ne5 {[%clk 0:01:47]} 29. Qd4 {[%clk 0:01:14]}  Nc4 {[%clk 0:01:43]} 30. Nf4 {[%clk 0:00:49]}  Nxb2 {[%clk 0:01:27]} 31. Nxe6 {[%clk 0:00:44]}  fxe6 {[%clk 0:01:20]} 32. Qg4 {[%clk 0:00:38]}  Nc4 {[%clk 0:01:15]} 33. Qg6 {[%clk 0:00:36]}  Kf8 {[%clk 0:00:57]} 34. Qh7 {[%clk 0:00:27]}  Qe5 {[%clk 0:00:57]} 35. Qh8+ {[%clk 0:00:23]}  Kf7 {[%clk 0:00:55]} 36. Qd8 {[%clk 0:00:14]}  Qd6 {[%clk 0:00:49]} 37. Qc8 {[%clk 0:00:13]}  Qe7 {[%clk 0:00:45]} 38. Qa6 {[%clk 0:00:11]}  Ne5 {[%clk 0:00:41]} 39. a4 {[%clk 0:00:10]}  Nc6 {[%clk 0:00:36]} 40. Bd3 {[%clk 0:00:10]}  Qc5 {[%clk 0:00:32]} 41. Bb5 {[%clk 0:00:09]}  Ne7 {[%clk 0:00:23]} 42. Qxa7 {[%clk 0:00:09]}  Kf6 {[%clk 0:00:21]} 43. g3 {[%clk 0:00:07]}  Nf5 {[%clk 0:00:20]} 44. a5 {[%clk 0:00:06]}  Qxb5 {[%clk 0:00:19]} 45. axb6 {[%clk 0:00:06]}  Nd6 {[%clk 0:00:16]} 46. Qc7 {[%clk 0:00:05]}  Qb1+ {[%clk 0:00:10]} 47. Kg2 {[%clk 0:00:05]}  Qe4+ {[%clk 0:00:10]} 48. Kg1 {[%clk 0:00:05]}  Qe1+ {[%clk 0:00:10]} 49. Kg2 {[%clk 0:00:06]}  Ne4 {[%clk 0:00:09]} 50. Qf4+ {[%clk 0:00:06]}  Ke7 {[%clk 0:00:07]} 51. b7 {[%clk 0:00:07]}  Nd2 {[%clk 0:00:06]} 52. b8=Q {[%clk 0:00:05]}  Qf1+ {[%clk 0:00:06]} 53. Kh2 {[%clk 0:00:06]}  Qc4 {[%clk 0:00:04]} 54. Qbc7+ {[%clk 0:00:06]}  Qxc7 {[%clk 0:00:04]} 55. Qxc7+ {[%clk 0:00:07]}  Kf6 {[%clk 0:00:04]} 56. Qf4+ {[%clk 0:00:07]}  Kg6 {[%clk 0:00:04]} 57. Qxd2 {[%clk 0:00:08]}  Kf7 {[%clk 0:00:04]} 58. Qd3 {[%clk 0:00:08]} 1-0


[Site "https://www.chess.com"]

[Event "Titled Tuesday Blitz June 27 Early 2023"]
[White "Ruge, Edison"]
[Black "Gatterer, Florian"]
[WhiteFideId "4401000"]
[BlackFideId "811688"]
[WhiteElo "2207"]
[BlackElo "2404"]
[Result "1-0"]
[Round "6"]
[TimeControl "180+2"]
[Date "2023.06.27"]
[WhiteClock "0:01:23"]
[BlackClock "0:00:00"]
[Board "172"]

1. e4 {[%clk 0:03:00]}  c5 {[%clk 0:02:57]} 2. Nf3 {[%clk 0:03:01]}  e6 {[%clk 0:02:57]} 3. d3 {[%clk 0:03:01]}  Nc6 {[%clk 0:02:54]} 4. Nbd2 {[%clk 0:03:02]}  Nf6 {[%clk 0:02:52]} 5. g3 {[%clk 0:03:03]}  Be7 {[%clk 0:02:52]} 6. Bg2 {[%clk 0:03:03]}  d5 {[%clk 0:02:52]} 7. O-O {[%clk 0:03:04]}  O-O {[%clk 0:02:52]} 8. e5 {[%clk 0:03:03]}  Nd7 {[%clk 0:02:52]} 9. Re1 {[%clk 0:03:04]}  b5 {[%clk 0:02:52]} 10. Qe2 {[%clk 0:03:04]}  b4 {[%clk 0:02:49]} 11. Nf1 {[%clk 0:03:03]}  a5 {[%clk 0:02:48]} 12. h4 {[%clk 0:03:04]}  a4 {[%clk 0:02:48]} 13. Bf4 {[%clk 0:03:04]}  a3 {[%clk 0:02:48]} 14. b3 {[%clk 0:03:04]}  Ba6 {[%clk 0:02:47]} 15. N1h2 {[%clk 0:03:03]}  Re8 {[%clk 0:02:47]} 16. h5 {[%clk 0:03:02]}  h6 {[%clk 0:02:47]} 17. Ng4 {[%clk 0:03:02]}  Bf8 {[%clk 0:02:46]} 18. Qd2 {[%clk 0:03:02]}  c4 {[%clk 0:02:36]} 19. dxc4 {[%clk 0:02:58]}  dxc4 {[%clk 0:02:36]} 20. Rad1 {[%clk 0:02:57]}  Ra7 {[%clk 0:02:25]} 21. Bxh6 {[%clk 0:02:42]}  Ndxe5 {[%clk 0:01:36]} 22. Ngxe5 {[%clk 0:02:33]}  Qxd2 {[%clk 0:01:13]} 23. Bxd2 {[%clk 0:02:30]}  Nxe5 {[%clk 0:01:01]} 24. Nxe5 {[%clk 0:02:29]}  cxb3 {[%clk 0:01:02]} 25. cxb3 {[%clk 0:02:29]}  Rc7 {[%clk 0:00:56]} 26. Rc1 {[%clk 0:02:16]}  Rec8 {[%clk 0:00:56]} 27. Rxc7 {[%clk 0:02:07]}  Rxc7 {[%clk 0:00:56]} 28. Rc1 {[%clk 0:02:08]}  Bd6 {[%clk 0:00:39]} 29. Rxc7 {[%clk 0:02:06]}  Bxc7 {[%clk 0:00:39]} 30. Nc6 {[%clk 0:02:00]}  Bd3 {[%clk 0:00:34]} 31. Bxb4 {[%clk 0:01:53]}  Bb1 {[%clk 0:00:30]} 32. Bxa3 {[%clk 0:01:53]}  Bxa2 {[%clk 0:00:30]} 33. b4 {[%clk 0:01:53]}  Bc4 {[%clk 0:00:29]} 34. Nd4 {[%clk 0:01:50]}  e5 {[%clk 0:00:28]} 35. Nc2 {[%clk 0:01:48]}  f6 {[%clk 0:00:28]} 36. Ne3 {[%clk 0:01:46]}  Bd3 {[%clk 0:00:26]} 37. Bd5+ {[%clk 0:01:45]}  Kh7 {[%clk 0:00:27]} 38. Bc4 {[%clk 0:01:45]}  Be4 {[%clk 0:00:26]} 39. b5 {[%clk 0:01:45]}  Kh6 {[%clk 0:00:26]} 40. Bc5 {[%clk 0:01:44]}  Kxh5 {[%clk 0:00:24]} 41. b6 {[%clk 0:01:44]}  Bb8 {[%clk 0:00:25]} 42. Bd5 {[%clk 0:01:44]}  Bd3 {[%clk 0:00:20]} 43. b7 {[%clk 0:01:42]}  f5 {[%clk 0:00:20]} 44. Nc4 {[%clk 0:01:39]}  f4 {[%clk 0:00:19]} 45. Bf3+ {[%clk 0:01:35]}  Kh6 {[%clk 0:00:17]} 46. gxf4 {[%clk 0:01:33]}  exf4 {[%clk 0:00:17]} 47. Nb6 {[%clk 0:01:32]}  Bf5 {[%clk 0:00:16]} 48. Nc8 {[%clk 0:01:28]}  g5 {[%clk 0:00:14]} 49. Ne7 {[%clk 0:01:26]}  Be6 {[%clk 0:00:13]} 50. Nc6 {[%clk 0:01:25]}  Bc7 {[%clk 0:00:12]} 51. b8=Q {[%clk 0:01:24]}  Bxb8 {[%clk 0:00:12]} 52. Nxb8 {[%clk 0:01:24]}  g4 {[%clk 0:00:13]} 53. Be4 {[%clk 0:01:24]}  g3 {[%clk 0:00:10]} 54. f3 {[%clk 0:01:23]}  Kg5 {[%clk 0:00:10]} 55. Bd6 {[%clk 0:01:23]}  Bc8 {[%clk 0:00:00]} 56. Nc6 {[%clk 0:01:23]} 1-0


[Site "https://www.chess.com"]